bitfinex/quotes_SOLUSD_20241205
["timestamp","ask_amount","ask_price","bid_price","bid_amount"]
[1733405476691,19.76106539,241.5,241.42,19.76106539]
[1733405477563,19.76106539,241.48,241.4,19.76106539]
[1733405477757,20.50672668,241.47,241.39,19.76106539]
[1733405478559,19.76106539,241.46,241.38,19.76106539]
[1733405479374,19.76106539,241.48,241.4,19.76106539]
[1733405479560,19.76106539,241.46,241.38,19.76106539]
[1733405479786,19.76106539,241.44,241.36,19.76106539]
[1733405480272,19.76106539,241.5,241.43,19.76106539]
[1733405480891,0.74566129,241.49,241.43,19.76106539]
[1733405481075,0.74566129,241.49,241.41,19.76106539]
[1733405481591,19.76106539,241.48,241.41,19.76106539]
[1733405482371,19.76106539,241.5,241.41,19.76106539]
[1733405482694,0.74566129,241.49,241.41,19.76106539]
[1733405482997,6.1069,241.56,241.48,19.76106539]
[1733405483194,19.76106539,241.62,241.54,19.76106539]
[1733405483379,20.50672668,241.62,241.54,19.76106539]
[1733405483578,19.76106539,241.64,241.56,19.76106539]
[1733405483897,0.74566129,241.63,241.56,19.76106539]
[1733405484594,0.74566129,241.63,241.53,19.76106539]
[1733405484595,19.76106539,241.61,241.53,19.76106539]
[1733405485102,19.76106539,241.59,241.51,19.76106539]
[1733405485387,19.76106539,241.53,241.43,19.76106539]
[1733405485590,19.76106539,241.49,241.41,19.76106539]
[1733405485891,6.4751,241.54,241.33,5.12117842]
[1733405485892,19.76106539,241.45,241.37,19.76106539]
[1733405486098,0.74566129,241.44,241.37,19.76106539]
[1733405486268,19.76106539,241.45,241.37,19.76106539]
[1733405486469,19.76106539,241.47,241.39,19.76106539]
[1733405486775,0.74566129,241.46,241.34,19.76106539]
[1733405486982,19.76106539,241.39,241.3,19.76106539]
[1733405487179,19.76106539,241.37,241.3,19.76106539]
[1733405487571,0.74566129,241.36,241.3,19.76106539]
[1733405488379,19.76106539,241.37,241.3,19.76106539]
[1733405488565,0.74566129,241.36,241.3,19.76106539]
[1733405488999,19.76106539,241.37,241.3,19.76106539]
[1733405489196,0.74566129,241.36,241.3,19.76106539]
[1733405489568,19.76106539,241.35,241.26,39.76106539]
[1733405489779,19.76106539,241.33,241.24,19.76106539]
[1733405490593,0.74566129,241.32,241.24,19.76106539]
[1733405491095,19.76106539,241.33,241.24,19.76106539]
[1733405491294,0.74566129,241.32,241.24,19.76106539]
[1733405491598,19.76106539,241.33,241.24,19.76106539]
[1733405491901,0.74566129,241.32,241.24,19.76106539]
[1733405492099,19.76106539,241.35,241.26,19.76106539]
[1733405492282,0.74566129,241.34,241.26,19.76106539]
[1733405492671,19.76106539,241.37,241.28,19.76106539]
[1733405492872,0.74566129,241.36,241.28,19.76106539]
[1733405493172,0.74566129,241.36,241.3,19.76106539]
[1733405493376,0.74566129,241.38,241.25,20.0]
[1733405493607,19.76106539,241.33,241.25,20.0]
[1733405493810,19.76106539,241.35,241.28,19.76106539]
[1733405493986,0.74566129,241.34,241.28,19.76106539]
[1733405494185,19.76106539,241.37,241.3,19.76106539]
[1733405494380,20.50672668,241.39,241.32,19.76106539]
[1733405494702,20.50672668,241.39,241.26,0.62162961]
[1733405494703,20.50672668,241.39,241.3,19.76106539]
[1733405494874,19.76106539,241.37,241.3,19.76106539]
[1733405495897,19.76106539,241.39,241.3,19.76106539]
[1733405496106,19.76106539,241.39,241.25,24.5]
[1733405496107,20.50672668,241.43,241.36,19.76106539]
[1733405496304,25.96386539,241.47,241.4,19.76106539]
[1733405496473,6.2028,241.47,241.42,19.76106539]
[1733405496791,20.50672668,241.51,241.42,19.76106539]
[1733405496993,0.74566129,241.51,241.44,19.76106539]
[1733405497189,20.50672668,241.51,241.42,19.76106539]
[1733405497589,19.76106539,241.5,241.42,19.76106539]
[1733405497997,0.74566129,241.49,241.4,19.76106539]
[1733405498300,19.76106539,241.46,241.37,19.76106539]
[1733405498493,0.74566129,241.45,241.37,19.76106539]
[1733405498892,19.76106539,241.46,241.39,19.76106539]
[1733405499897,19.76106539,241.46,241.37,19.76106539]
[1733405500679,19.76106539,241.48,241.4,19.76106539]
[1733405500907,7.7192,241.52,241.4,19.76106539]
[1733405500908,25.89056539,241.52,241.44,19.76106539]
[1733405501207,6.1295,241.52,241.44,19.76106539]
[1733405501499,19.76106539,241.52,241.44,19.76106539]
[1733405501903,19.76106539,241.52,241.45,23.776884]
[1733405502479,19.76106539,241.48,241.4,19.76106539]
[1733405502677,19.76106539,241.48,241.41,23.776884]
[1733405502880,19.76106539,241.46,241.41,23.776884]
[1733405503097,19.76106539,241.46,241.38,19.76106539]
[1733405504629,19.76106539,241.46,241.39,23.776884]
[1733405504788,19.76106539,241.44,241.34,0.62126683]
[1733405504992,19.76106539,241.4,241.31,4.5]
[1733405505309,19.76106539,241.4,241.32,19.76106539]
[1733405506411,19.76106539,241.42,241.35,23.776884]
[1733405507898,19.76106539,241.42,241.34,19.76106539]
[1733405508507,19.76106539,241.42,241.31,0.62135814]
[1733405508703,19.76106539,241.4,241.32,43.53794939]
[1733405508895,6.2234,241.51,241.32,23.776884]
[1733405508896,19.76106539,241.38,241.32,23.776884]
[1733405509100,19.76106539,241.38,241.31,23.776884]
[1733405509301,0.74566129,241.37,241.3,19.76106539]
[1733405509508,19.76106539,241.38,241.3,19.76106539]
[1733405510421,19.76106539,241.36,241.31,23.776884]
[1733405510621,19.76106539,241.36,241.29,23.776884]
[1733405512157,19.76106539,241.38,241.29,23.776884]
[1733405512309,19.76106539,241.38,241.3,19.76106539]
[1733405512512,19.76106539,241.38,241.31,23.776884]
[1733405513528,0.74566129,241.44,241.36,19.76106539]
[1733405513734,19.76106539,241.47,241.38,19.76106539]
[1733405514027,19.76106539,241.47,241.39,23.776884]
[1733405514400,19.76106539,241.45,241.39,23.776884]
[1733405514726,19.76106539,241.43,241.37,20.0]
[1733405516113,19.76106539,241.45,241.37,20.0]
[1733405516318,0.74566129,241.44,241.37,20.0]
[1733405517138,0.74566129,241.44,241.38,19.76106539]
[1733405517339,0.74566129,241.44,241.36,19.76106539]
[1733405518428,0.74566129,241.44,241.38,19.76106539]
[1733405518940,19.76106539,241.47,241.35,24.39823015]
[1733405518941,20.50672668,241.49,241.41,19.76106539]
[1733405519305,19.76106539,241.47,241.39,19.76106539]
[1733405519504,0.74566129,241.46,241.39,19.76106539]
[1733405521123,19.76106539,241.43,241.35,23.776884]
[1733405521322,0.74566129,241.42,241.35,23.776884]
[1733405521537,0.74566129,241.42,241.34,39.76106539]
[1733405521834,0.74566129,241.42,241.36,19.76106539]
[1733405522131,6.2234,241.51,241.3,20.0]
[1733405522132,19.76106539,241.39,241.3,19.76106539]
[1733405522330,19.76106539,241.37,241.27,19.76106539]
[1733405522633,19.76106539,241.35,241.25,19.76106539]
[1733405522934,0.74566129,241.34,241.25,19.76106539]
[1733405524749,0.74566129,241.34,241.26,23.776884]
[1733405525039,0.74566129,241.34,241.21,19.76106539]
[1733405525040,19.76106539,241.3,241.21,19.76106539]
[1733405525219,19.76106539,241.28,241.19,19.76106539]
[1733405525425,6.6494,241.39,241.19,19.76106539]
[1733405525426,19.76106539,241.26,241.19,19.76106539]
[1733405525615,0.74566129,241.25,241.17,19.76106539]
[1733405525815,0.74566129,241.25,241.14,8.1054]
[1733405526138,0.74566129,241.25,241.17,19.76106539]
[1733405526340,19.76106539,241.26,241.17,19.76106539]
[1733405526547,0.74566129,241.25,241.17,19.76106539]
[1733405526842,20.50672668,241.26,241.17,19.76106539]
[1733405527342,20.50672668,241.26,241.18,23.776884]
[1733405527530,19.76106539,241.3,241.21,19.76106539]
[1733405527707,6.5967,241.33,241.25,19.76106539]
[1733405527708,26.35776539,241.33,241.25,19.76106539]
[1733405527906,0.74566129,241.32,241.25,19.76106539]
[1733405528126,6.5967,241.33,241.26,23.776884]
[1733405528319,0.74566129,241.34,241.27,19.76106539]
[1733405528521,19.76106539,241.37,241.29,19.76106539]
[1733405528722,0.74566129,241.36,241.29,19.76106539]
[1733405529108,19.76106539,241.35,241.27,19.76106539]
[1733405529309,0.74566129,241.34,241.28,23.776884]
[1733405529913,0.74566129,241.34,241.22,20.0]
[1733405529914,19.76106539,241.33,241.22,20.0]
[1733405530141,0.74566129,241.32,241.28,19.76106539]
[1733405530320,0.74566129,241.34,241.28,19.76106539]
[1733405530750,0.74566129,241.34,241.26,19.76106539]
[1733405531549,0.74566129,241.34,241.28,19.76106539]
[1733405531716,20.50672668,241.37,241.28,19.76106539]
[1733405532048,19.76106539,241.35,241.28,19.76106539]
[1733405532245,0.74566129,241.34,241.26,19.76106539]
[1733405532415,19.76106539,241.33,241.26,19.76106539]
[1733405532615,0.74566129,241.32,241.26,19.76106539]
[1733405533129,0.74566129,241.32,241.24,19.76106539]
[1733405535934,19.76106539,241.31,241.22,19.76106539]
[1733405536136,0.74566129,241.3,241.22,19.76106539]
[1733405536332,0.74566129,241.3,241.13,16.9079]
[1733405536333,19.76106539,241.25,241.1,5.12177782]
[1733405536546,0.74566129,241.24,241.16,19.76106539]
[1733405537655,19.76106539,241.27,241.18,19.76106539]
[1733405537830,2.38606129,241.28,241.2,19.76106539]
[1733405537831,0.74566129,241.26,241.2,19.76106539]
[1733405538339,6.1817,241.29,241.24,19.76106539]
[1733405539258,19.76106539,241.33,241.26,19.76106539]
[1733405539430,0.74566129,241.32,241.26,19.76106539]
[1733405539948,6.0604,241.36,241.3,19.76106539]
[1733405542542,0.74566129,241.35,241.28,19.76106539]
[1733405546459,20.50672668,241.35,241.26,19.76106539]
[1733405547963,0.74566129,241.35,241.32,19.76106539]
[1733405548167,6.0604,241.36,241.32,19.76106539]
[1733405548347,6.0604,241.36,241.3,19.76106539]
[1733405549155,19.76106539,241.34,241.25,19.76106539]
[1733405549462,0.74566129,241.35,241.21,6.0578]
[1733405549463,19.76106539,241.32,241.24,20.0]
[1733405549700,19.76106539,241.3,241.21,19.76106539]
[1733405549833,0.74566129,241.29,241.21,19.76106539]
[1733405550239,19.76106539,241.28,241.19,19.76106539]
[1733405550557,19.76106539,241.28,241.21,19.76106539]
[1733405551560,19.76106539,241.3,241.21,19.76106539]
[1733405551734,0.74566129,241.29,241.21,19.76106539]
[1733405553773,19.76106539,241.28,241.19,19.76106539]
[1733405554074,19.76106539,241.28,241.2,23.776884]
[1733405554272,0.74566129,241.34,241.21,19.76106539]
[1733405554481,19.76106539,241.3,241.21,19.76106539]
[1733405554679,0.74566129,241.29,241.21,19.76106539]
[1733405554979,19.76106539,241.28,241.21,19.76106539]
[1733405555569,6.0604,241.36,241.16,19.76106539]
[1733405555570,19.76106539,241.26,241.16,19.76106539]
[1733405555883,0.74566129,241.25,241.16,19.76106539]
[1733405556582,0.74566129,241.25,241.18,19.76106539]
[1733405556779,19.76106539,241.26,241.18,19.76106539]
[1733405556983,0.74566129,241.25,241.18,19.76106539]
[1733405558586,6.0604,241.36,241.18,19.76106539]
[1733405558587,19.76106539,241.32,241.24,19.76106539]
[1733405558762,0.74566129,241.31,241.24,19.76106539]
[1733405558967,0.74566129,241.31,241.22,19.76106539]
[1733405559177,19.76106539,241.28,241.19,43.53794939]
[1733405560586,19.76106539,241.3,241.21,19.76106539]
[1733405560889,0.74566129,241.29,241.21,19.76106539]
[1733405562062,13.11772169,241.29,241.2,32.3720604]
[1733405570588,13.11772169,241.29,241.22,12.3720604]
[1733405571063,13.11772169,241.29,241.2,32.3720604]
[1733405571964,13.11772169,241.29,241.2,12.3720604]
[1733405572167,12.3720604,241.25,241.17,12.3720604]
[1733405572371,12.3720604,241.23,241.15,12.3720604]
[1733405572778,0.74566129,241.27,241.17,12.3720604]
[1733405572967,0.74566129,241.34,241.24,12.3720604]
[1733405573171,12.3720604,241.31,241.22,12.3720604]
[1733405573565,12.3720604,241.33,241.24,12.3720604]
[1733405573765,0.74566129,241.32,241.26,12.3720604]
[1733405574288,0.74566129,241.32,241.24,12.3720604]
[1733405577272,12.3720604,241.31,241.22,12.3720604]
[1733405577475,0.74566129,241.3,241.22,12.3720604]
[1733405581694,0.74566129,241.3,241.24,12.3720604]
[1733405584306,12.3720604,241.31,241.18,0.62173081]
[1733405584307,0.74566129,241.34,241.28,12.3720604]
[1733405586079,8.51106129,241.35,241.28,12.3720604]
[1733405586603,8.51106129,241.35,241.26,12.3720604]
[1733405586906,8.51106129,241.35,241.28,12.3720604]
[1733405587109,7.7654,241.35,241.32,12.3720604]
[1733405587685,6.103,241.35,241.32,12.3720604]
[1733405588381,6.103,241.35,241.3,12.3720604]
[1733405588780,6.103,241.35,241.22,1.67241473]
[1733405588781,0.74566129,241.34,241.28,12.3720604]
[1733405589694,6.84866129,241.35,241.28,12.3720604]
[1733405590311,6.103,241.35,241.3,12.3720604]
[1733405590613,13.11772169,241.38,241.3,12.3720604]
[1733405591197,0.74566129,241.38,241.32,12.3720604]
[1733405591513,0.74566129,241.39,241.32,12.3720604]
[1733405592298,0.74566129,241.39,241.34,12.3720604]
[1733405592606,8.1446,241.4,241.34,12.3720604]
[1733405593011,6.5285,241.4,241.34,12.3720604]
[1733405593510,7.27416129,241.4,241.34,12.3720604]
[1733405593709,6.5285,241.4,241.34,12.3720604]
[1733405594015,12.3720604,241.44,241.36,12.3720604]
[1733405594182,6.6356,241.45,241.4,12.3720604]
[1733405594385,12.3720604,241.53,241.44,12.3720604]
[1733405594607,0.74566129,241.52,241.44,12.3720604]
[1733405595117,0.74566129,241.52,241.46,12.3720604]
[1733405595317,7.01466129,241.54,241.46,11.8720604]
[1733405595513,7.01466129,241.54,241.48,12.3720604]
[1733405595890,7.01466129,241.54,241.46,12.3720604]
[1733405597597,7.01466129,241.54,241.48,12.3720604]
[1733405598412,7.07516129,241.6,241.5,12.3720604]
[1733405598597,7.07516129,241.6,241.43,1.6511]
[1733405598598,12.3720604,241.57,241.48,12.3720604]
[1733405598802,12.3720604,241.55,241.46,12.3720604]
[1733405598993,0.74566129,241.54,241.46,12.3720604]
[1733405599191,12.3720604,241.49,241.37,1.6467]
[1733405599412,0.74566129,241.48,241.4,12.3720604]
[1733405600719,12.3720604,241.45,241.36,12.3720604]
[1733405600923,12.3720604,241.43,241.34,12.3720604]
[1733405601089,12.3720604,241.41,241.34,12.3720604]
[1733405601396,0.74566129,241.4,241.34,12.3720604]
[1733405601595,12.3720604,241.43,241.26,21.43086787]
[1733405601801,0.74566129,241.42,241.36,12.3720604]
[1733405602021,0.74566129,241.42,241.34,12.3720604]
[1733405603715,12.3720604,241.41,241.34,12.3720604]
[1733405604030,0.74566129,241.4,241.32,12.3720604]
[1733405604215,0.74566129,241.4,241.33,23.776884]
[1733405604533,0.74566129,241.4,241.34,12.3720604]
[1733405605605,12.3720604,241.39,241.32,12.3720604]
[1733405605821,12.3720604,241.37,241.3,12.3720604]
[1733405606035,0.74566129,241.36,241.3,12.3720604]
[1733405606209,0.74566129,241.36,241.28,12.3720604]
[1733405606412,12.3720604,241.35,241.28,12.3720604]
[1733405606632,0.74566129,241.34,241.27,12.3720604]
[1733405606930,0.74566129,241.34,241.28,12.3720604]
[1733405608325,13.11772169,241.35,241.28,12.3720604]
[1733405608527,13.11772169,241.35,241.27,12.3720604]
[1733405608831,0.74566129,241.35,241.28,12.3720604]
[1733405609907,12.3720604,241.33,241.26,12.3720604]
[1733405610101,0.74566129,241.32,241.26,12.3720604]
[1733405611339,0.74566129,241.32,241.27,12.3720604]
[1733405611504,0.74566129,241.33,241.27,12.3720604]
[1733405611703,13.11772169,241.33,241.25,12.3720604]
[1733405612100,12.61772169,241.33,241.25,12.3720604]
[1733405613415,0.24566129,241.33,241.26,12.3720604]
[1733405613828,12.61772169,241.33,241.26,12.3720604]
[1733405614031,0.24566129,241.33,241.26,12.3720604]
[1733405614239,12.61772169,241.33,241.26,12.3720604]
[1733405614824,0.24566129,241.33,241.26,12.3720604]
[1733405615915,0.24566129,241.33,241.3,12.3720604]
[1733405616134,0.24566129,241.35,241.32,12.3720604]
[1733405616441,6.1192,241.38,241.34,12.3720604]
[1733405616623,0.24566129,241.42,241.37,12.3720604]
[1733405616828,6.47646129,241.44,241.39,12.3720604]
[1733405617340,6.2308,241.44,241.39,12.3720604]
[1733405617925,6.2308,241.44,241.41,12.3720604]
[1733405618125,6.542,241.5,241.43,12.3720604]
[1733405618327,6.78766129,241.5,241.45,12.3720604]
[1733405619519,6.542,241.5,241.46,12.3720604]
[1733405621433,0.24566129,241.53,241.47,12.3720604]
[1733405621637,12.3720604,241.53,241.46,12.3720604]
[1733405621831,0.24566129,241.52,241.46,12.3720604]
[1733405622855,0.24566129,241.53,241.46,12.3720604]
[1733405623158,0.24566129,241.55,241.5,12.3720604]
[1733405623333,0.24566129,241.55,241.49,12.3720604]
[1733405625036,12.61772169,241.55,241.47,12.3720604]
[1733405625455,0.24566129,241.55,241.49,12.3720604]
[1733405626541,12.3720604,241.51,241.45,12.3720604]
[1733405626729,0.24566129,241.5,241.45,12.3720604]
[1733405627349,12.3720604,241.53,241.45,12.3720604]
[1733405627546,0.24566129,241.52,241.45,12.3720604]
[1733405630228,12.3720604,241.53,241.46,23.776884]
[1733405630438,0.24566129,241.55,241.49,12.3720604]
[1733405630636,6.74976129,241.56,241.5,23.776884]
[1733405630936,6.74976129,241.56,241.49,12.3720604]
[1733405631341,6.74976129,241.56,241.5,12.3720604]
[1733405632464,6.74976129,241.56,241.46,12.3720604]
[1733405632465,12.3720604,241.54,241.46,12.3720604]
[1733405632649,0.24566129,241.53,241.46,12.3720604]
[1733405636537,12.61772169,241.55,241.46,12.3720604]
[1733405639130,12.3720604,241.53,241.44,12.3720604]
[1733405639457,12.3720604,241.53,241.34,6.4236]
[1733405639458,12.3720604,241.49,241.4,12.3720604]
[1733405639642,0.24566129,241.48,241.4,12.3720604]
[1733405640055,7.90616482,241.47,241.39,7.90616482]
[1733405640230,0.24566129,241.46,241.39,7.90616482]
[1733405642057,0.24566129,241.46,241.39,12.35328883]
[1733405644062,12.59895012,241.46,241.38,12.35328883]
[1733405646282,6.063,241.45,241.38,12.35328883]
[1733405646439,0.24566129,241.44,241.38,12.35328883]
[1733405647066,12.35328883,241.42,241.35,12.35328883]
[1733405647247,12.59895012,241.41,241.34,12.35328883]
[1733405648149,0.24566129,241.41,241.35,12.35328883]
[1733405648642,12.59895012,241.42,241.35,12.35328883]
[1733405649381,12.35328883,241.41,241.34,12.35328883]
[1733405649562,0.24566129,241.4,241.34,12.35328883]
[1733405650047,0.24566129,241.4,241.35,12.35328883]
[1733405650246,0.24566129,241.4,241.29,23.776884]
[1733405650247,0.24566129,241.4,241.34,12.35328883]
[1733405650754,0.24566129,241.4,241.35,12.35328883]
[1733405650968,0.24566129,241.41,241.35,12.35328883]
[1733405651756,12.59895012,241.41,241.33,12.35328883]
[1733405652954,12.59895012,241.41,241.34,12.35328883]
[1733405654074,12.59895012,241.41,241.28,1.5997]
[1733405654075,12.35328883,241.39,241.31,12.35328883]
[1733405654375,12.35328883,241.36,241.29,12.35328883]
[1733405654572,12.35328883,241.34,241.27,12.35328883]
[1733405654878,0.24566129,241.33,241.27,12.35328883]
[1733405655554,12.59895012,241.33,241.26,12.35328883]
[1733405655756,0.24566129,241.33,241.27,12.35328883]
[1733405655961,0.24566129,241.33,241.29,12.35328883]
[1733405656273,12.59895012,241.36,241.29,12.35328883]
[1733405656455,12.35328883,241.4,241.33,12.35328883]
[1733405656652,0.24566129,241.39,241.33,12.35328883]
[1733405657157,0.24566129,241.39,241.34,12.35328883]
[1733405657356,6.063,241.45,241.35,12.35328883]
[1733405657578,0.24566129,241.44,241.38,12.35328883]
[1733405658873,0.24566129,241.44,241.39,12.35328883]
[1733405659081,0.24566129,241.44,241.4,12.35328883]
[1733405659250,6.063,241.45,241.42,12.35328883]
[1733405659570,12.35328883,241.5,241.43,12.35328883]
[1733405659771,0.24566129,241.49,241.43,12.35328883]
[1733405660277,0.24566129,241.5,241.43,12.35328883]
[1733405660661,12.59895012,241.5,241.43,12.35328883]
[1733405661062,12.35328883,241.49,241.41,12.35328883]
[1733405661376,0.24566129,241.48,241.41,12.35328883]
[1733405661956,12.35328883,241.45,241.37,12.35328883]
[1733405662269,0.24566129,241.44,241.37,12.35328883]
[1733405662675,12.35328883,241.43,241.33,20.0]
[1733405662979,12.35328883,241.41,241.33,32.35328883]
[1733405663181,0.24566129,241.4,241.33,12.35328883]
[1733405664077,12.35328883,241.41,241.33,12.35328883]
[1733405664254,0.24566129,241.4,241.33,12.35328883]
[1733405664455,12.35328883,241.41,241.33,12.35328883]
[1733405664763,12.35328883,241.43,241.35,12.35328883]
[1733405664973,0.24566129,241.42,241.35,12.35328883]
[1733405666450,0.24566129,241.42,241.3,23.776884]
[1733405666685,12.35328883,241.41,241.3,23.776884]
[1733405666876,0.24566129,241.4,241.33,12.35328883]
[1733405670772,0.24566129,241.4,241.34,12.35328883]
[1733405670972,0.24566129,241.41,241.34,12.35328883]
[1733405673276,6.77516129,241.41,241.34,12.35328883]
[1733405673982,14.68507616,241.41,241.34,7.90991487]
[1733405675481,6.2292,241.48,241.4,7.90991487]
[1733405675684,0.24566129,241.47,241.41,7.90991487]
[1733405675991,0.24566129,241.47,241.35,24.39834706]
[1733405675992,1.6585,241.51,241.45,7.90991487]
[1733405676484,8.15557616,241.5,241.43,7.90991487]
[1733405676860,0.24566129,241.5,241.43,7.90991487]
[1733405677070,1.6585,241.51,241.44,7.90991487]
[1733405677331,1.90416129,241.51,241.45,7.90991487]
[1733405677993,1.90416129,241.51,241.45,12.34756409]
[1733405678161,18.57676409,241.54,241.47,12.34756409]
[1733405678673,0.24566129,241.53,241.47,12.34756409]
[1733405678873,12.59322538,241.53,241.46,12.34756409]
[1733405679492,12.59322538,241.53,241.44,12.34756409]
[1733405679872,12.34756409,241.51,241.44,12.34756409]
[1733405680183,0.24566129,241.5,241.42,12.34756409]
[1733405680377,12.34756409,241.49,241.42,12.34756409]
[1733405680579,12.34756409,241.47,241.32,5.86221221]
[1733405680793,12.34756409,241.45,241.37,12.34756409]
[1733405680976,0.24566129,241.44,241.37,12.34756409]
[1733405681296,1.5019,241.47,241.41,12.34756409]
[1733405681492,0.24566129,241.46,241.39,12.34756409]
[1733405681670,12.59322538,241.46,241.37,12.34756409]
[1733405682276,12.59322538,241.46,241.39,12.34756409]
[1733405683982,0.24566129,241.46,241.39,12.34756409]
[1733405684782,12.34756409,241.43,241.35,12.34756409]
[1733405685107,0.24566129,241.42,241.35,12.34756409]
[1733405685690,12.59322538,241.42,241.34,12.34756409]
[1733405690878,6.6284,241.44,241.38,12.34756409]
[1733405691082,6.87406129,241.44,241.4,12.34756409]
[1733405691405,6.87406129,241.44,241.33,0.6213681]
[1733405691406,6.87406129,241.44,241.39,12.34756409]
[1733405692277,0.24566129,241.43,241.39,12.34756409]
[1733405693098,6.6284,241.44,241.38,12.34756409]
[1733405693290,0.24566129,241.45,241.39,12.34756409]
[1733405694006,12.34756409,241.47,241.39,12.34756409]
[1733405694007,0.24566129,241.46,241.39,12.34756409]
[1733405696205,0.24566129,241.46,241.41,12.34756409]
[1733405696510,0.24566129,241.48,241.41,12.34756409]
[1733405696684,12.34756409,241.47,241.39,12.34756409]
[1733405696886,12.59322538,241.46,241.38,12.34756409]
[1733405697993,0.24566129,241.46,241.41,7.90548715]
[1733405698191,0.24566129,241.47,241.4,7.90548715]
[1733405698391,8.15114844,241.47,241.4,7.90548715]
[1733405698610,7.90548715,241.46,241.39,7.90548715]
[1733405698796,8.15114844,241.45,241.38,7.90548715]
[1733405698994,0.24566129,241.45,241.38,7.90548715]
[1733405699182,0.24566129,241.45,241.39,7.90548715]
[1733405699679,0.24566129,241.45,241.4,7.90548715]
[1733405699880,0.24566129,241.46,241.4,7.90548715]
[1733405700288,8.15114844,241.46,241.4,7.90548715]
[1733405700689,8.15114844,241.46,241.39,7.90548715]
[1733405700898,7.90548715,241.45,241.38,7.90548715]
[1733405701119,0.24566129,241.44,241.38,7.90548715]
[1733405701411,0.24566129,241.44,241.39,7.90548715]
[1733405701986,0.24566129,241.45,241.39,7.90548715]
[1733405703097,0.24566129,241.45,241.33,0.62134899]
[1733405703321,0.24566129,241.49,241.43,7.90548715]
[1733405703694,8.15114844,241.49,241.42,7.90548715]
[1733405704491,0.24566129,241.49,241.43,7.90548715]
[1733405705108,0.24566129,241.55,241.48,7.90548715]
[1733405705313,0.24566129,241.56,241.51,7.90548715]
[1733405708295,0.24566129,241.53,241.48,7.90548715]
[1733405708696,0.24566129,241.54,241.48,7.90548715]
[1733405709417,7.90548715,241.53,241.46,7.90548715]
[1733405709621,8.15114844,241.52,241.43,23.776884]
[1733405709812,8.15114844,241.52,241.45,7.90548715]
[1733405710324,0.24566129,241.52,241.46,7.90548715]
[1733405711214,0.24566129,241.55,241.43,23.776884]
[1733405711521,7.90548715,241.53,241.46,7.90548715]
[1733405711718,0.24566129,241.55,241.49,7.90548715]
[1733405711917,0.24566129,241.56,241.51,7.90548715]
[1733405712107,6.84586129,241.57,241.51,7.90548715]
[1733405712827,0.24566129,241.57,241.51,7.90548715]
[1733405713130,7.90548715,241.59,241.51,7.90548715]
[1733405713318,0.24566129,241.58,241.51,7.90548715]
[1733405713706,0.24566129,241.6,241.54,7.90548715]
[1733405714100,0.24566129,241.6,241.56,7.90548715]
[1733405714293,0.24566129,241.62,241.57,7.90548715]
[1733405716120,7.90548715,241.58,241.51,7.90548715]
[1733405716327,0.24566129,241.57,241.5,7.90548715]
[1733405716501,8.15114844,241.57,241.5,7.90548715]
[1733405717328,7.90548715,241.53,241.42,6.08051832]
[1733405717530,0.24566129,241.52,241.46,7.90548715]
[1733405717905,0.24566129,241.52,241.47,7.90548715]
[1733405718435,0.24566129,241.53,241.47,7.90548715]
[1733405720137,12.34661805,241.52,241.44,12.34661805]
[1733405720337,0.24566129,241.51,241.44,12.34661805]
[1733405723138,0.24566129,241.51,241.42,20.0]
[1733405723335,12.34661805,241.49,241.41,12.34661805]
[1733405723533,0.24566129,241.48,241.42,12.34661805]
[1733405723915,0.24566129,241.48,241.35,2.13003094]
[1733405723916,0.24566129,241.48,241.43,12.34661805]
[1733405724532,12.34661805,241.45,241.38,12.34661805]
[1733405724733,0.24566129,241.44,241.38,12.34661805]
[1733405724923,0.24566129,241.44,241.39,12.34661805]
[1733405725429,0.24566129,241.44,241.4,12.34661805]
[1733405725631,0.24566129,241.45,241.4,12.34661805]
[1733405726841,5.1764,241.48,241.32,12.96791838]
[1733405726842,12.59227934,241.46,241.39,12.34661805]
[1733405728021,12.34661805,241.43,241.35,23.776884]
[1733405728207,12.34661805,241.39,241.23,1.5816]
[1733405728403,6.6403,241.41,241.23,1.5816]
[1733405728404,12.59227934,241.38,241.31,12.34661805]
[1733405729937,0.24566129,241.38,241.32,12.34661805]
[1733405730811,12.59227934,241.38,241.31,12.34661805]
[1733405731719,12.34661805,241.32,241.17,1.6174]
[1733405731916,12.34661805,241.28,241.21,12.34661805]
[1733405732132,0.24566129,241.27,241.21,12.34661805]
[1733405732714,6.4655,241.3,241.17,1.6174]
[1733405732715,6.4655,241.3,241.26,12.34661805]
[1733405733036,6.4655,241.3,241.28,12.34661805]
[1733405733406,0.24566129,241.34,241.29,12.34661805]
[1733405733635,0.24566129,241.34,241.21,23.776884]
[1733405733636,0.24566129,241.34,241.32,12.34661805]
[1733405733842,0.24566129,241.34,241.3,12.34661805]
[1733405734058,0.24566129,241.34,241.29,12.34661805]
[1733405734340,12.34661805,241.3,241.22,12.34661805]
[1733405734510,12.59227934,241.29,241.22,12.34661805]
[1733405735342,0.24566129,241.29,241.23,12.34661805]
[1733405736351,12.59227934,241.29,241.22,12.34661805]
[1733405736519,12.59227934,241.29,241.13,10.98933348]